bitfinex-derivatives/quotes_SOLF0:USTF0_20251208
["timestamp","ask_amount","ask_price","bid_price","bid_amount"]
[1765227281596,0.04855428,134.56,134.53,6.74544805]
[1765227282095,0.04855428,134.56,134.53,0.05644805]
[1765227282603,0.04855428,134.56,134.53,6.74564805]
[1765227282895,0.04855428,134.56,134.53,0.05644805]
[1765227283090,0.04855428,134.56,134.54,63.14]
[1765227283398,0.04855428,134.56,134.54,69.8288]
[1765227287588,0.04855428,134.56,134.54,63.14]
[1765227288293,0.04855428,134.56,134.54,69.8288]
[1765227289597,3.37855428,134.56,134.54,69.8288]
[1765227290297,3.37855428,134.56,134.54,63.14]
[1765227291089,0.04855428,134.56,134.54,63.14]
[1765227292091,0.04855428,134.56,134.54,69.8287]
[1765227297511,3.33,134.62,134.58,6.6866]
[1765227297699,5.88018406,134.61,134.58,69.8466]
[1765227298003,6.85276917,134.65,134.58,63.16]
[1765227298206,9.209379,134.64,134.58,63.16]
[1765227298408,5.879379,134.63,134.58,63.16]
[1765227298607,9.26182885,134.62,134.59,0.05167361]
[1765227298807,3.33,134.6,134.59,0.05167361]
[1765227299110,5.879379,134.6,134.59,0.05167361]
[1765227299807,0.05244985,134.62,134.59,0.05167361]
[1765227300011,5.87319276,134.61,134.6,6.6858]
[1765227300207,9.276e-05,134.61,134.6,69.8458]
[1765227300410,0.05244985,134.62,134.6,69.8458]
[1765227300711,3.23244985,134.62,134.59,0.05167361]
[1765227301111,3.18,134.61,134.59,0.05167361]
[1765227301307,3.18,134.61,134.54,6.6887]
[1765227301708,3.18,134.59,134.55,6.6879]
[1765227302021,3.18,134.59,134.53,63.16]
[1765227302311,3.18,134.59,134.55,0.05059298]
[1765227302510,0.04703402,134.57,134.55,6.73889298]
[1765227304414,0.04703402,134.57,134.56,63.16]
[1765227304605,3.22703402,134.57,134.55,0.05059298]
[1765227304909,0.04703402,134.57,134.55,0.05059298]
[1765227305111,0.04703402,134.57,134.55,6.73879298]
[1765227307313,3.22703402,134.57,134.55,0.05059298]
[1765227308611,5.14655892,134.63,134.55,6.73899298]
[1765227308909,103.7854,134.89,134.75,103.8832]
[1765227309101,110.4604,134.88,134.76,63.18]
[1765227309305,103.7913,134.88,134.8,6.79411699]
[1765227309507,103.7913,134.88,134.83,0.0481075]
[1765227309711,0.05352213,134.85,134.79,6.79411699]
[1765227310307,0.05352213,134.85,134.73,119.78563605]
[1765227310308,105.34692213,134.85,134.73,103.8996]
[1765227310511,103.8218,134.84,134.71,18.26585871]
[1765227310712,0.05591137,134.79,134.77,0.05120133]
[1765227310913,3.18,134.78,134.77,0.05120133]
[1765227311512,4.66,134.78,134.77,0.05120133]
[1765227312717,4.66,134.78,134.72,116.45914304]
[1765227313018,63.16,134.83,134.74,110.5722]
[1765227313611,63.16,134.83,134.74,6.6788]
[1765227314012,0.05478867,134.8,134.73,103.8958]
[1765227314217,0.05478867,134.8,134.72,116.45914304]
[1765227314820,0.05478867,134.8,134.73,110.5792]
[1765227315023,3.18,134.79,134.75,0.04946657]
[1765227315424,4.66,134.79,134.7,110.604]
[1765227315625,3.18,134.78,134.7,110.604]
[1765227315924,3.18,134.78,134.71,103.9158]
[1765227316417,173.667,134.83,134.73,0.05662688]
[1765227316418,3.18,134.75,134.73,0.05662688]
[1765227316621,3.23511835,134.75,134.73,0.0495964]
[1765227317122,4.71511835,134.75,134.69,109.80174304]
[1765227317322,3.23511835,134.75,134.69,109.80174304]
[1765227317623,3.23511835,134.75,134.69,5.87074304]
[1765227318220,3.23511835,134.75,134.71,0.04902948]
[1765227320825,3.37,134.74,134.66,5.87074304]
[1765227321616,3.37,134.74,134.67,6.27482042]
[1765227321812,3.37,134.7,134.69,0.02570148]
[1765227322131,3.37,134.7,134.69,6.3005219]
[1765227322831,3.37,134.69,134.65,6.6831]
[1765227323726,3.37,134.69,134.65,125.6831]
[1765227326130,3.37,134.69,134.65,229.6479]
[1765227326316,66.49,134.69,134.65,229.6479]
[1765227327428,3.37,134.68,134.66,6.6826]
[1765227328029,3.37,134.68,134.66,125.6826]
[1765227328830,6.678,134.76,134.72,52.4568455]
[1765227329020,63.14,134.75,134.72,30.0568455]
[1765227329221,63.14,134.75,134.68,6.6818]
[1765227329421,63.14,134.75,134.68,125.6818]
[1765227329829,0.05615833,134.73,134.7,0.0531545]
[1765227331123,1.53615833,134.73,134.7,0.0531545]
[1765227333832,1.53615833,134.73,134.7,119.0531545]
[1765227334728,8.21575833,134.73,134.7,119.0531545]
[1765227335235,6.73575833,134.73,134.7,119.0531545]
[1765227335629,8.21575833,134.73,134.7,119.0531545]
[1765227335834,6.73575833,134.73,134.7,119.0531545]
[1765227337540,6.6801,134.72,134.7,119.0531545]
[1765227337830,6.6801,134.72,134.7,101.89127308]
[1765227338035,6.6801,134.72,134.66,96.29127308]
[1765227338036,105.4025,134.71,134.66,96.29127308]
[1765227338236,63.14,134.7,134.67,6.27124981]
[1765227338436,63.14,134.7,134.66,96.29127308]
[1765227338633,0.05237136,134.69,134.66,96.29127308]
[1765227339233,6.682,134.68,134.66,96.29127308]
[1765227339435,6.682,134.68,134.63,6.684]
[1765227339436,6.682,134.68,134.63,96.29127308]
[1765227339637,6.682,134.68,134.64,6.15765591]
[1765227339830,6.682,134.68,134.65,6.15765591]
[1765227340029,6.682,134.68,134.63,96.29127308]
[1765227340227,6.682,134.68,134.64,6.15765809]
[1765227340431,6.682,134.68,134.65,6.15765809]
[1765227340632,6.682,134.68,134.63,96.29127308]
[1765227340832,6.682,134.68,134.64,6.1585734]
[1765227341032,6.682,134.68,134.65,6.1585734]
[1765227341233,6.682,134.68,134.63,96.29127308]
[1765227341431,6.682,134.68,134.64,6.15782895]
[1765227341637,6.682,134.68,134.65,6.15782895]
[1765227341837,6.682,134.68,134.63,96.29127308]
[1765227342134,6.682,134.68,134.64,6.15762943]
[1765227342330,6.682,134.68,134.65,6.15762943]
[1765227342541,6.682,134.68,134.63,96.29127308]
[1765227342743,6.682,134.68,134.64,6.14238958]
[1765227342942,6.682,134.68,134.65,6.14238958]
[1765227343242,6.682,134.68,134.63,102.97557308]
[1765227343445,6.682,134.68,134.64,6.14361796]
[1765227343634,6.682,134.68,134.65,6.14361796]
[1765227343833,6.682,134.68,134.63,102.97557308]
[1765227344035,6.682,134.68,134.64,6.14361796]
[1765227344237,6.682,134.68,134.65,6.14361796]
[1765227344439,6.682,134.68,134.65,96.29127308]
[1765227344637,6.6825,134.67,134.65,96.29127308]
[1765227345344,63.14,134.66,134.62,96.29127308]
[1765227345541,0.0492924,134.65,134.63,6.14739869]
[1765227345743,0.0492924,134.65,134.62,96.29127308]
[1765227345944,63.16,134.64,134.63,6.14740492]
[1765227346142,0.0492924,134.65,134.63,6.14740492]
[1765227346343,63.16,134.64,134.62,96.29127308]
[1765227346545,63.16,134.64,134.63,6.14761298]
[1765227350047,6.7327924,134.65,134.63,6.14761298]
[1765227350240,63.16,134.64,134.62,96.29127308]
[1765227352349,69.844,134.64,134.62,96.29127308]
[1765227352851,69.844,134.64,134.62,98.76305398]
[1765227354446,6.6851,134.62,134.59,96.29127308]
[1765227354645,6.74195852,134.62,134.6,6.11717579]
[1765227354849,6.74195852,134.62,134.59,96.29127308]
[1765227355043,12.25228298,134.62,134.6,6.07806001]
[1765227355250,6.74195852,134.62,134.59,96.29127308]
[1765227355446,6.74195852,134.62,134.6,6.08100335]
[1765227355647,6.74195852,134.62,134.59,96.29127308]
[1765227355948,0.05685852,134.62,134.61,5.35]
[1765227356150,63.21685852,134.62,134.61,11.43100335]
[1765227357747,5.51210977,134.64,134.62,5.35]
[1765227357947,63.16,134.65,134.63,17.31761924]
[1765227358149,5.50508486,134.64,134.63,11.23661589]
[1765227358350,5.50508486,134.64,134.63,17.32257597]
[1765227359458,68.66508486,134.64,134.63,17.32257597]
[1765227359656,68.66508486,134.64,134.63,113.61384905]
[1765227359849,68.66508486,134.64,134.63,107.72723316]
[1765227360153,5.50508486,134.64,134.63,107.72723316]
[1765227360457,5.50508486,134.64,134.63,102.37723316]
[1765227361157,68.66508486,134.64,134.63,102.37723316]
[1765227361466,68.66508486,134.64,134.63,102.39046922]
[1765227361950,5.50508486,134.64,134.63,107.74046922]
[1765227362145,63.16,134.64,134.63,107.74046922]
[1765227362458,63.21513321,134.65,134.64,5.35]
[1765227362659,63.21513321,134.65,134.64,11.44919614]
[1765227363747,63.21513321,134.65,134.64,6.09919614]
[1765227365356,63.21513321,134.65,134.64,11.79919614]
[1765227365661,0.05513321,134.65,134.64,17.68581203]
[1765227366246,63.16,134.68,134.66,96.23613987]
[1765227366452,69.8419,134.68,134.67,9.614e-05]
[1765227367157,6.6819,134.68,134.67,9.614e-05]
[1765227367459,69.8419,134.68,134.67,9.614e-05]
[1765227369662,69.8419,134.68,134.67,96.23623601]
[1765227371462,69.8419,134.68,134.67,96.23613987]
[1765227373265,69.8419,134.68,134.67,84.73353987]
[1765227373459,69.8419,134.68,134.67,29.82623987]
[1765227373658,69.8419,134.68,134.67,13.66113987]
[1765227373957,69.8419,134.68,134.67,3.987e-05]
[1765227374465,75.26490645,134.68,134.67,3.987e-05]
[1765227375464,12.10490645,134.68,134.67,3.987e-05]
[1765227375664,75.26490645,134.68,134.67,3.987e-05]
[1765227378475,75.26490645,134.68,134.67,6.1008771]
[1765227378869,12.10490645,134.68,134.67,11.7908771]
[1765227379073,12.10490645,134.68,134.67,134.65193078]
[1765227379471,5.42300645,134.68,134.67,134.65193078]
[1765227379774,63.21570115,134.69,134.68,5.69]
[1765227379967,63.21570115,134.69,134.68,130.79083723]
[1765227380271,0.05570115,134.69,134.68,130.79083723]
[1765227381368,63.16,134.71,134.69,5.69]
[1765227381562,63.16,134.71,134.7,11.79083723]
[1765227381967,63.16,134.71,134.7,6.10083723]
[1765227382166,69.8406,134.71,134.7,6.10083723]
[1765227383872,69.8406,134.71,134.7,11.79083723]
[1765227384070,6.6806,134.71,134.7,11.79083723]
[1765227384764,6.6806,134.71,134.7,6.10083723]
[1765227384972,63.20705479,134.72,134.71,5.69]
[1765227384973,0.04705479,134.72,134.71,5.69]
[1765227385171,0.04705479,134.72,134.71,11.79083723]
[1765227385365,300.0,134.73,134.72,5.69]
[1765227385565,300.0,134.73,134.72,130.79083723]
[1765227386272,300.0,134.73,134.72,11.79083723]
[1765227390378,300.0,134.73,134.72,6.10083723]
[1765227390673,63.14,134.73,134.72,119.0]
[1765227390878,167.0507,134.73,134.69,0.05196301]
[1765227391180,300.0,134.72,134.69,119.05196301]
[1765227391374,6.6809,134.7,134.69,124.74196301]
[1765227392173,0.05029422,134.71,134.7,5.69]
[1765227395880,300.0,134.74,134.73,49.12930578]
[1765227396081,300.0,134.73,134.71,5.69]
[1765227396484,300.0,134.73,134.71,124.69]
[1765227396881,300.05240315,134.73,134.71,124.74716485]
[1765227397579,6.6801,134.72,134.71,124.74716485]
[1765227398676,6.6801,134.72,134.71,119.05716485]
[1765227398873,6.6801,134.72,134.71,124.74716485]
[1765227401888,6.6801,134.72,134.71,119.05716485]
[1765227402392,12.06243671,134.72,134.71,119.05716485]
[1765227402688,12.06243671,134.72,134.71,113.90384994]
[1765227402990,12.06243671,134.72,134.71,96.27666485]
[1765227403189,12.06243671,134.72,134.71,102.32142893]
[1765227404280,12.06243671,134.72,134.71,108.01142893]
[1765227404584,6.6801,134.72,134.71,108.01142893]
[1765227405390,63.19240315,134.73,134.71,108.01142893]
[1765227405688,0.05240315,134.73,134.72,6.04476408]
[1765227405889,5.4203107,134.73,134.72,6.04476408]
[1765227406389,6.73190315,134.73,134.72,11.73476408]
[1765227407990,6.73190315,134.73,134.72,107.95426408]
[1765227408893,6.6789,134.75,134.74,5.89]
[1765227409093,12.04630614,134.75,134.74,11.93476408]
[1765227410283,12.04630614,134.75,134.74,6.04476408]
[1765227411096,12.04630614,134.75,134.74,102.21186093]
[1765227412493,12.04630614,134.75,134.74,96.16709685]
[1765227412793,12.04630614,134.75,134.74,102.19247727]
[1765227414593,6.6794,134.73,134.71,71.9442617]
[1765227414793,5.36740614,134.72,134.71,71.9442617]
[1765227415989,5.36740614,134.72,134.71,77.8342617]
[1765227416498,0.0531513,134.73,134.72,5.89]
[1765227416801,5.42705283,134.73,134.72,5.89]
[1765227418394,242.15843746,134.74,134.72,77.77709685]
[1765227418594,1.48,134.75,134.72,6.85943211]
[1765227418802,6.18,134.75,134.69,69.97943211]
[1765227419102,1.48,134.74,134.69,69.97943211]
[1765227419295,0.05503744,134.73,134.7,0.05049186]
[1765227422396,1.48,134.72,134.7,0.05049186]
[1765227423299,0.05503744,134.73,134.7,6.90992397]
[1765227423600,1.48,134.72,134.7,78.79702082]
[1765227424202,1.48,134.72,134.7,71.93758871]
[1765227425905,6.47,134.71,134.7,0.05049186]
[1765227426512,6.47,134.69,134.63,6.85943211]
[1765227426805,6.47,134.67,134.64,5.65868521]
[1765227427010,6.47,134.67,134.65,5.65868521]
[1765227427215,7.94996013,134.66,134.6,6.85943211]
[1765227427398,7.94996013,134.66,134.62,0.04877583]
[1765227427605,0.05216831,134.64,134.63,5.65719034]
[1765227428301,8.00212844,134.64,134.63,5.65719034]
[1765227428796,6.52216831,134.64,134.63,5.65719034]
[1765227429001,6.52216831,134.64,134.62,0.04877583]
[1765227429202,1.47996013,134.63,134.62,0.04877583]
[1765227429406,1.47996013,134.63,134.62,5.69605583]
[1765227430305,0.05216831,134.64,134.62,5.69605583]
[1765227430500,0.05216831,134.64,134.62,0.04877583]
[1765227430501,1.47996013,134.63,134.62,0.04877583]
[1765227430806,13.24165916,134.63,134.62,0.04877583]
[1765227431202,13.1557,134.61,134.57,3.86105368]
[1765227431399,13.1557,134.61,134.58,5.64158886]
[1765227431600,18.44739903,134.61,134.54,6.85943211]
[1765227431810,7.94996013,134.6,134.55,9.50301798]
[1765227432010,7.94996013,134.6,134.56,5.6419643]
[1765227432211,0.0539483,134.59,134.57,5.69721426]
[1765227432411,0.0539483,134.59,134.57,0.05524996]
[1765227432712,0.0539483,134.59,134.57,2.52798164]
[1765227433513,0.0539483,134.59,134.58,2.47273168]
[1765227436616,6.6851,134.62,134.59,71.83314855]
[1765227436809,6.6851,134.62,134.61,2.47273168]
[1765227437511,8.16506013,134.62,134.61,2.47273168]
[1765227437808,6.6851,134.62,134.61,2.47273168]
[1765227440408,1.47996013,134.62,134.61,2.47273168]
[1765227440610,0.05054096,134.63,134.61,2.47273168]
[1765227440801,0.05054096,134.63,134.62,2.47273168]
[1765227440802,6.49054096,134.63,134.62,2.47273168]
[1765227441006,6.49054096,134.63,134.62,74.30588023]
[1765227441613,0.05054096,134.63,134.62,74.30588023]
[1765227442608,6.73514096,134.63,134.62,74.30588023]
[1765227443008,6.73514096,134.63,134.62,71.83314855]
[1765227444012,110.4008,134.66,134.63,65.09800759]
[1765227444214,6.44,134.65,134.63,65.09800759]
[1765227444903,6.4877649,134.65,134.63,65.15440827]
[1765227445515,6.44,134.64,134.63,65.15440827]
[1765227448817,6.7311649,134.65,134.63,65.15440827]
[1765227449211,13.1711649,134.65,134.63,65.15440827]
[1765227450012,0.0477649,134.65,134.63,67.62713995]
[1765227450614,6.4877649,134.65,134.63,65.15440827]
[1765227451122,13.1715649,134.65,134.63,65.15440827]
[1765227452626,6.44,134.64,134.63,65.15440827]
[1765227453329,6.44,134.64,134.63,53.83130827]
[1765227453529,6.44,134.64,134.63,0.05640068]
[1765227453729,6.44,134.62,134.58,2.47273168]
[1765227453931,6.44,134.62,134.6,2.47273168]
[1765227454319,13.1256,134.61,134.6,2.47273168]
[1765227454524,13.1256,134.61,134.6,15.70020759]
[1765227455431,6.6856,134.61,134.6,18.17293927]
[1765227456541,13.1256,134.61,134.6,15.70020759]
[1765227461636,13.1256,134.61,134.6,3.87720759]
[1765227461838,6.6873,134.58,134.56,2.47273168]
[1765227462432,13.1273,134.58,134.56,2.47273168]
[1765227462835,13.1273,134.58,134.56,121.52582438]
[1765227462836,13.17874579,134.58,134.56,121.52582438]
[1765227463936,110.4955,134.54,134.47,6.86727801]
[1765227464136,110.4955,134.54,134.43,2.47273168]
[1765227464137,104.104,134.47,134.43,2.47273168]
[1765227464433,110.5771,134.43,134.37,6.86727801]
[1765227464734,104.1661,134.39,134.33,2.47273168]
[1765227464940,117.37797624,134.37,134.35,0.05343682]
[1765227465242,113.10433168,134.36,134.35,0.05193858]
[1765227465631,113.10433168,134.36,134.24,70.04727801]
[1765227465632,104.2006,134.35,134.25,6.86727801]
[1765227465830,113.11333168,134.35,134.28,2.47273168]
[1765227466031,13.1392,134.34,134.27,2.47273168]
[1765227466232,2.47273168,134.32,134.25,2.47273168]
[1765227466635,63.2,134.32,134.24,63.18]
[1765227466835,0.05632799,134.29,134.27,0.05576558]
[1765227467036,0.04867768,134.29,134.27,0.05576558]
[1765227468232,63.24867768,134.29,134.27,0.05576558]
[1765227469134,0.04867768,134.29,134.27,0.05576558]
[1765227469839,0.04867768,134.29,134.27,119.05576558]
[1765227473743,5.91366076,134.35,134.27,120.53576558]
[1765227473744,63.26,134.35,134.27,120.53576558]
[1765227473945,63.26,134.35,134.27,119.05576558]
[1765227474132,6.49,134.34,134.27,119.05576558]
[1765227474733,0.04993089,134.32,134.27,119.05576558]
[1765227475145,6.53993089,134.32,134.27,119.05576558]
[1765227475342,6.49,134.31,134.27,0.05576558]
[1765227476650,0.04993089,134.32,134.27,0.05576558]
[1765227477049,0.04993089,134.32,134.27,119.05576558]
[1765227477347,0.04993089,134.32,134.27,125.75806558]
[1765227477543,0.04993089,134.32,134.27,292.50712634]
[1765227478432,0.04993089,134.32,134.29,6.701]
[1765227479041,0.04993089,134.32,134.3,6.7005]
[1765227479240,0.04993089,134.32,134.3,125.7005]
[1765227480049,0.04993089,134.32,134.3,119.0]
[1765227481351,6.6962,134.4,134.3,7.39366076]
[1765227481537,6.49,134.41,134.3,124.91366076]
[1765227481846,6.49,134.41,134.33,5.91366076]
[1765227482044,6.6951,134.42,134.34,63.28]
[1765227482244,0.05502679,134.39,134.37,0.04866642]
[1765227482545,6.54607752,134.39,134.37,0.04866642]
[1765227482747,0.05607752,134.39,134.37,0.04866642]
[1765227483338,6.54607752,134.39,134.37,0.04866642]
[1765227483542,0.05607752,134.39,134.37,0.04866642]
[1765227484439,6.54607752,134.39,134.37,0.04866642]
[1765227484642,6.49,134.38,134.37,0.04866642]
[1765227485244,6.75267752,134.39,134.37,0.04866642]
[1765227485450,12.68267752,134.39,134.37,0.04866642]
[1765227485846,5.93,134.38,134.37,0.04866642]
[1765227487051,6.75267752,134.39,134.37,0.04866642]
[1765227487254,5.93,134.38,134.37,105.79326642]
[1765227487447,5.93,134.38,134.37,67.65608405]
[1765227487647,5.93,134.38,134.37,56.42668405]
[1765227488658,5.93,134.38,134.37,45.04328405]
[1765227488859,5.93,134.38,134.37,33.70838405]
[1765227489345,5.93,134.38,134.37,9.74918405]
[1765227489747,5.93,134.38,134.37,8.405e-05]
[1765227490858,12.68267752,134.39,134.37,8.405e-05]
[1765227491352,0.05607752,134.39,134.37,8.405e-05]
[1765227491557,0.05607752,134.39,134.37,119.00008405]
[1765227493957,5.98607752,134.39,134.37,119.00008405]
[1765227494157,5.93,134.38,134.37,119.00008405]
[1765227494547,6.6973,134.37,134.36,0.04693418]
[1765227494753,5.93,134.34,134.27,6.1]
[1765227495558,6.6999,134.32,134.27,6.1]
[1765227495860,0.04970828,134.31,134.29,6.1]
[1765227497261,6.75020828,134.31,134.29,6.1]
[1765227497454,5.97970828,134.31,134.28,0.04948046]
[1765227497655,5.93,134.3,134.28,0.04948046]
[1765227497855,110.21050828,134.31,134.28,0.04948046]
[1765227498857,6.7009,134.3,134.28,0.04948046]
[1765227500964,5.67,134.29,134.28,0.04948046]
[1765227501661,109.9375,134.26,134.22,6.13]
[1765227501958,109.9375,134.26,134.11,6.13]
[1765227501959,109.9835,134.2,134.11,6.13]
[1765227502164,5.67,134.2,134.11,6.13]
[1765227502362,6.7065,134.19,134.11,6.13]
[1765227502754,0.05204971,134.16,134.15,6.13]
[1765227503151,0.05204971,134.16,134.14,0.0509678]
[1765227506261,6.76014971,134.16,134.14,6.1809678]
[1765227506470,110.0295,134.15,134.1,6.13]
[1765227506665,104.3682,134.13,134.05,6.13]
[1765227506959,104.3835,134.11,134.05,6.13]
[1765227507164,110.0772,134.08,134.01,6.13]
[1765227507366,5.67,134.08,134.01,6.13]
[1765227507559,0.04893478,134.06,134.04,6.13]
[1765227508156,0.04893478,134.06,134.03,0.05539694]
[1765227508157,5.71893478,134.06,134.03,0.05539694]
[1765227511356,5.67,134.05,134.03,0.05539694]
[1765227512161,12.3839,134.04,133.96,6.13]
[1765227512356,5.67,134.02,133.96,6.13]
[1765227512765,5.67,134.02,133.94,3.8853402]
[1765227512966,5.67,134.02,133.94,10.0153402]
[1765227513164,0.05166336,133.99,133.95,6.13]
[1765227515668,5.72166336,133.99,133.94,3.8853402]
[1765227516076,5.67,133.98,133.94,3.8853402]
[1765227516371,0.05166336,133.99,133.95,6.13]
[1765227516772,104.3877,134.11,133.96,6.13]
[1765227516973,110.0812,134.08,133.96,6.13]
[1765227517268,104.4151,134.07,133.97,6.13]
[1765227517469,104.4228,134.06,133.97,6.13]
[1765227517670,110.1097,134.04,133.97,6.13]
[1765227517970,12.3852,134.02,134.0,0.05410473]
[1765227518563,5.67,134.01,134.0,0.05410473]
[1765227518873,5.67,133.95,133.94,4.02e-05]
[1765227520260,6.77209455,133.96,133.94,4.02e-05]
[1765227520471,0.05399455,133.96,133.94,4.02e-05]
[1765227520665,0.05399455,133.96,133.94,6.1300402]
[1765227521874,0.05399455,133.96,133.94,4.02e-05]
[1765227522367,104.4463,134.03,133.95,6.13]
[1765227522568,110.1271,134.02,133.95,6.13]
[1765227523588,0.0567609,134.0,133.98,6.13]
[1765227526082,12.3825,134.07,133.98,6.13]
[1765227526563,6.7131,134.06,133.98,6.13]
[1765227527068,0.05608951,134.03,134.01,0.04964353]
[1765227530170,13.38088951,134.03,134.01,0.04964353]
[1765227530365,6.61,134.02,134.01,0.04964353]
[1765227530878,6.7167,133.99,133.94,4.02e-05]
[1765227531881,0.04824848,133.98,133.95,0.04755124]
[1765227532080,0.04824848,133.98,133.95,6.07755124]
[1765227532276,104.4437,134.04,133.95,6.07755124]
[1765227532468,104.4437,134.04,133.95,6.03]
[1765227533474,6.25497248,134.01,133.98,0.05714222]
[1765227534274,12.916,134.0,133.98,0.05714222]
[1765227535177,6.2,133.99,133.98,0.05714222]
[1765227535981,6.716,134.0,133.98,0.05714222]
[1765227536378,12.916,134.0,133.98,0.05714222]
[1765227537182,6.716,134.0,133.98,0.05714222]
[1765227537683,0.05497248,134.01,133.98,6.08714222]
[1765227538081,6.2,134.07,133.99,6.03]
[1765227538670,110.6353,134.05,133.94,6.0300402]
[1765227538876,6.2,134.03,133.94,6.0300402]
[1765227539076,0.05100125,134.0,133.97,0.05005732]
[1765227539284,0.05100125,134.0,133.97,6.08005732]
[1765227540673,0.05100125,134.0,133.97,0.05005732]
[1765227541586,0.05100125,134.0,133.97,6.08005732]
[1765227543891,0.05100125,134.0,133.97,12.79725732]
[1765227544189,109.631097,134.08,133.98,6.03]
[1765227544492,109.631097,134.08,133.97,168.00205732]
[1765227544493,6.2,134.1,134.02,6.03]
[1765227544689,5.23042507,134.12,134.05,6.03]
[1765227544885,5.23042507,134.11,134.05,6.03]
[1765227545084,5.23042507,134.12,134.05,6.03]
[1765227545282,0.05052777,134.1,134.07,0.049917]
[1765227546398,5.25174197,134.09,134.07,6.079917]
[1765227546591,0.05052777,134.1,134.07,6.079917]
[1765227546789,0.05052777,134.1,134.07,12.792117]
[1765227546989,0.05052777,134.1,134.08,6.06]
[1765227547497,11.96029737,134.16,134.09,6.06]
[1765227547685,6.708,134.16,134.09,6.06]
[1765227547884,11.96029737,134.16,134.09,6.06]
[1765227548192,6.7085,134.15,134.09,6.06]
[1765227548492,0.05694823,134.13,134.11,6.10850878]
[1765227549278,0.05694823,134.13,134.11,0.04850878]
[1765227549786,0.05694823,134.13,134.05,104.427]
[1765227549787,110.2483,134.12,134.04,6.06]
[1765227549991,5.87,134.1,134.04,6.06]
[1765227550188,10.93845859,134.09,134.04,6.06]
[1765227550391,5.87,134.09,134.04,6.06]
[1765227550590,10.93845859,134.08,134.04,6.06]
[1765227550793,0.04989307,134.07,134.05,0.05571807]
[1765227550985,5.91989307,134.07,134.05,0.05571807]
[1765227551482,17.70095166,134.07,134.05,0.05571807]
[1765227551684,12.63249307,134.07,134.05,0.05571807]
[1765227552189,11.83095166,134.07,134.05,6.11571807]
[1765227552383,12.63249307,134.07,134.05,0.05571807]
[1765227553180,12.63249307,134.07,134.05,6.11571807]
[1765227553181,6.76249307,134.07,134.05,6.11571807]
[1765227553384,6.76249307,134.07,134.05,0.05571807]
[1765227555093,0.04989307,134.07,134.05,6.11571807]
[1765227555684,0.04989307,134.07,134.05,0.05571807]
[1765227556595,0.04989307,134.07,134.05,6.11571807]
[1765227556795,0.04989307,134.07,134.05,0.05571807]
[1765227557190,0.04989307,134.07,134.06,6.06]
[1765227557898,0.04989307,134.07,134.05,94.53270212]
[1765227558094,0.04989307,134.07,134.06,6.06]
[1765227558695,0.04989307,134.07,134.05,88.47270212]
[1765227558884,5.96989307,134.07,134.05,0.05571807]
[1765227559493,5.93591443,134.06,134.05,0.05571807]
[1765227559899,11.85591443,134.06,134.05,0.05571807]
[1765227560101,5.92,134.06,134.05,0.05571807]
[1765227560396,12.68239307,134.07,134.05,0.05571807]
[1765227560586,5.96989307,134.07,134.05,0.05571807]
[1765227560784,0.04989307,134.07,134.05,0.05571807]
[1765227560983,5.96989307,134.07,134.05,0.05571807]
[1765227561188,0.04989307,134.07,134.05,5.81571807]
[1765227564600,0.04989307,134.07,134.05,94.23270212]
[1765227565604,0.04989307,134.07,134.06,5.76]
[1765227566303,115.35195859,134.14,134.06,5.76]
[1765227566304,6.71,134.12,134.06,5.76]
[1765227566502,6.71,134.12,134.06,94.17698405]
[1765227566698,6.71,134.12,134.07,5.76]
[1765227567192,0.05038942,134.11,134.08,0.05673526]
[1765227567398,0.05038942,134.11,134.08,5.81673526]
[1765227567902,5.97038942,134.11,134.08,0.05673526]
[1765227568203,0.05038942,134.11,134.08,5.81673526]
[1765227569099,6.76078942,134.11,134.08,5.81673526]
[1765227569494,0.05038942,134.11,134.08,5.81673526]
[1765227570401,0.05038942,134.11,134.09,5.76]
[1765227570592,0.05038942,134.11,134.09,94.17698405]
[1765227571096,0.05038942,134.11,134.09,88.41698405]
[1765227571300,0.05038942,134.11,134.09,94.17698405]
[1765227571497,5.97038942,134.11,134.09,88.41698405]
[1765227571698,5.92,134.08,134.0,5.76]
[1765227572511,6.7131,134.06,134.01,5.76]